[Event "Late-Titled-Tuesday-Blitz-February-06-2024"]
[Site "Chess.com"]
[Date "2024.02.06"]
[Round "5"]
[White "DonMicheleCorleone"]
[Black "FMOlexandrProhorov"]
[Result "1-0"]
[WhiteElo "2494"]
[BlackElo "2302"]
[TimeControl "180+1"]
[EndTime "14:55:04 PST"]
[Termination "DonMicheleCorleone won by resignation"]

1. e4 {[%clk 0:03:00.9]} 1... c5 {[%clk 0:02:47.7]} 2. c3 {[%clk 0:03:01]} 2...
e5 {[%clk 0:02:47.2]} 3. d4 {[%clk 0:03:00.9]} 3... cxd4 {[%clk 0:02:46.8]} 4.
cxd4 {[%clk 0:03:01.8]} 4... exd4 {[%clk 0:02:46.9]} 5. Nf3 {[%clk 0:03:02.2]}
5... Nf6 {[%clk 0:02:46.7]} 6. e5 {[%clk 0:03:01.1]} 6... Nd5 {[%clk 0:02:46.6]}
7. Qxd4 {[%clk 0:03:01.3]} 7... Nb6 {[%clk 0:02:43]} 8. Bd3 {[%clk 0:02:59.4]}
8... Nc6 {[%clk 0:02:43.2]} 9. Qe4 {[%clk 0:02:59.9]} 9... Nb4 {[%clk
0:02:40.3]} 10. O-O {[%clk 0:02:55.6]} 10... Nxd3 {[%clk 0:02:39.4]} 11. Qxd3
{[%clk 0:02:56.5]} 11... Be7 {[%clk 0:02:37.9]} 12. Nc3 {[%clk 0:02:48.9]} 12...
O-O {[%clk 0:02:36.1]} 13. Bf4 {[%clk 0:02:48.5]} 13... f6 {[%clk 0:02:02.7]}
14. exf6 {[%clk 0:02:46.6]} 14... Bxf6 {[%clk 0:02:01.7]} 15. Bd6 {[%clk
0:02:46.5]} 15... Re8 {[%clk 0:01:57.5]} 16. Rfe1 {[%clk 0:02:46.8]} 16... Re6
{[%clk 0:01:53.6]} 17. Nb5 {[%clk 0:02:39.2]} 17... Qe8 {[%clk 0:01:44.9]} 18.
Nc7 {[%clk 0:02:37.8]} 18... Qg6 {[%clk 0:01:38.9]} 19. Qxg6 {[%clk 0:02:31.3]}
19... hxg6 {[%clk 0:01:38.4]} 20. Nxa8 {[%clk 0:02:25.2]} 20... Nxa8 {[%clk
0:01:35.5]} 21. Rac1 {[%clk 0:02:09]} 21... Nb6 {[%clk 0:01:31.9]} 22. Bc5
{[%clk 0:02:04.8]} 22... Nd5 {[%clk 0:01:27.7]} 23. Bxa7 {[%clk 0:01:59.4]}
23... Rxe1+ {[%clk 0:01:18.1]} 24. Nxe1 {[%clk 0:01:55.3]} 24... Ne7 {[%clk
0:01:18.1]} 25. Nd3 {[%clk 0:01:52.4]} 25... Nc6 {[%clk 0:01:15.4]} 26. Bc5
{[%clk 0:01:49]} 26... d5 {[%clk 0:01:15.4]} 27. Nb4 {[%clk 0:01:38.5]} 27...
Bd7 {[%clk 0:01:08.4]} 28. Nxd5 {[%clk 0:01:36.7]} 28... Bxb2 {[%clk 0:00:55.3]}
29. Rb1 {[%clk 0:01:36.6]} 29... Bf6 {[%clk 0:00:51.8]} 30. Nxf6+ {[%clk
0:01:35.7]} 30... gxf6 {[%clk 0:00:48.3]} 31. Rxb7 {[%clk 0:01:36.5]} 31... Be6
{[%clk 0:00:44.1]} 32. a4 {[%clk 0:01:34.9]} 32... Na5 {[%clk 0:00:38]} 33. Rb5
{[%clk 0:01:31.3]} 33... Nc6 {[%clk 0:00:32]} 34. Rb6 {[%clk 0:01:31.5]} 34...
Bd5 {[%clk 0:00:29]} 35. Rb7 {[%clk 0:01:29.9]} 35... g5 {[%clk 0:00:25.1]} 36.
Rd7 {[%clk 0:01:29.7]} 36... Bb3 {[%clk 0:00:22]} 37. Rd6 {[%clk 0:01:24.9]}
37... Bxa4 {[%clk 0:00:18.4]} 38. Rxf6 {[%clk 0:01:24.9]} 38... Kg7 {[%clk
0:00:18.4]} 39. Rf5 {[%clk 0:01:19.9]} 39... Kg6 {[%clk 0:00:17.1]} 40. Rd5
{[%clk 0:01:16.7]} 40... Nb8 {[%clk 0:00:12.8]} 41. Be3 {[%clk 0:01:16.3]} 41...
g4 {[%clk 0:00:13]} 42. Rg5+ {[%clk 0:01:16.3]} 42... Kf6 {[%clk 0:00:12.4]} 43.
Rxg4 {[%clk 0:01:17.2]} 43... Bc6 {[%clk 0:00:12.6]} 44. h4 {[%clk 0:01:16.2]}
44... Bd7 {[%clk 0:00:12.2]} 45. Rg3 {[%clk 0:01:15.8]} 45... Bf5 {[%clk
0:00:12.2]} 46. h5 {[%clk 0:01:15.9]} 46... Nd7 {[%clk 0:00:12]} 47. h6 {[%clk
0:01:16.1]} 47... Nf8 {[%clk 0:00:12.9]} 48. Bd4+ {[%clk 0:01:14.5]} 48... Kf7
{[%clk 0:00:12]} 49. Rg7+ {[%clk 0:01:13.4]} 49... Ke6 {[%clk 0:00:12.3]} 50. g4
{[%clk 0:01:13.4]} 50... Be4 {[%clk 0:00:12]} 51. f4 {[%clk 0:01:13.4]} 51...
Nh7 {[%clk 0:00:11.9]} 52. f5+ {[%clk 0:01:13.5]} 52... Kd5 {[%clk 0:00:12.3]}
53. Rxh7 {[%clk 0:01:13.7]} 53... Kxd4 {[%clk 0:00:12]} 54. Rd7+ {[%clk
0:01:13.9]} 54... Ke3 {[%clk 0:00:12.1]} 55. h7 {[%clk 0:01:14]} 55... Kf4
{[%clk 0:00:12.1]} 56. h8=Q {[%clk 0:01:14.1]} 56... Kxg4 {[%clk 0:00:13]} 57.
f6 {[%clk 0:01:13.9]} 57... Bf3 {[%clk 0:00:12.9]} 58. f7 {[%clk 0:01:14.1]}
58... Kf4 {[%clk 0:00:13.8]} 59. f8=Q+ {[%clk 0:01:14.3]} 59... Ke3 {[%clk
0:00:14.7]} 60. Qd4+ {[%clk 0:01:13.6]} 60... Ke2 {[%clk 0:00:14.5]} 61. Qh6
{[%clk 0:01:12.9]} 1-0

[Event "Late-Titled-Tuesday-Blitz-February-06-2024"]
[Site "Chess.com"]
[Date "2024.02.06"]
[Round "5"]
[White "Viktor_Poddubnyi"]
[Black "HandKnit"]
[Result "0-1"]
[WhiteElo "2267"]
[BlackElo "2503"]
[TimeControl "180+1"]
[EndTime "14:55:04 PST"]
[Termination "HandKnit won by checkmate"]

1. e4 {[%clk 0:02:59.8]} 1... e5 {[%clk 0:02:58.1]} 2. f4 {[%clk 0:02:58.7]}
2... Nc6 {[%clk 0:02:58.6]} 3. Nf3 {[%clk 0:02:58.3]} 3... exf4 {[%clk 0:02:57]}
4. d4 {[%clk 0:02:56.8]} 4... d5 {[%clk 0:02:53.9]} 5. exd5 {[%clk 0:02:56.4]}
5... Qxd5 {[%clk 0:02:51.5]} 6. Bxf4 {[%clk 0:02:56.4]} 6... Qe4+ {[%clk
0:02:41.2]} 7. Qe2 {[%clk 0:02:53.2]} 7... Qxe2+ {[%clk 0:02:41]} 8. Bxe2 {[%clk
0:02:52.2]} 8... Bf5 {[%clk 0:02:40.2]} 9. c3 {[%clk 0:02:33.7]} 9... O-O-O
{[%clk 0:02:38.8]} 10. Nbd2 {[%clk 0:02:23.9]} 10... Bd6 {[%clk 0:02:34.9]} 11.
Bxd6 {[%clk 0:02:20.9]} 11... Rxd6 {[%clk 0:02:35.8]} 12. O-O {[%clk 0:02:19.7]}
12... Nh6 {[%clk 0:02:27.5]} 13. h3 {[%clk 0:02:06.4]} 13... Re8 {[%clk
0:02:23.9]} 14. Rae1 {[%clk 0:01:53.1]} 14... a6 {[%clk 0:02:16]} 15. Bc4 {[%clk
0:01:47.9]} 15... Rxe1 {[%clk 0:02:12.4]} 16. Rxe1 {[%clk 0:01:46.1]} 16... Kd8
{[%clk 0:02:10.3]} 17. Nf1 {[%clk 0:01:35]} 17... f6 {[%clk 0:02:00.4]} 18. Ng3
{[%clk 0:01:28.9]} 18... Ne7 {[%clk 0:01:48.8]} 19. Nxf5 {[%clk 0:01:17.5]}
19... Nhxf5 {[%clk 0:01:49.7]} 20. g4 {[%clk 0:01:14.4]} 20... Rc6 {[%clk
0:01:29.5]} 21. Bd3 {[%clk 0:01:05.2]} 21... Nd6 {[%clk 0:01:26.3]} 22. Bxh7
{[%clk 0:01:03.1]} 22... b5 {[%clk 0:01:22]} 23. a3 {[%clk 0:00:52.5]} 23... Nc4
{[%clk 0:01:16.6]} 24. Re2 {[%clk 0:00:50.2]} 24... Nd5 {[%clk 0:00:59.2]} 25.
Bg8 {[%clk 0:00:14]} 25... Nf4 {[%clk 0:00:56.7]} 26. Rh2 {[%clk 0:00:13.7]}
26... a5 {[%clk 0:00:40.3]} 27. Bxc4 {[%clk 0:00:12.8]} 27... Rxc4 {[%clk
0:00:41.2]} 28. Kf2 {[%clk 0:00:11.3]} 28... b4 {[%clk 0:00:37.3]} 29. Ke3
{[%clk 0:00:11.3]} 29... bxc3 {[%clk 0:00:28.4]} 30. bxc3 {[%clk 0:00:09.7]}
30... Nd5+ {[%clk 0:00:25.1]} 31. Kd3 {[%clk 0:00:10]} 31... Rxc3+ {[%clk
0:00:22.7]} 32. Ke4 {[%clk 0:00:10.2]} 32... c6 {[%clk 0:00:20.1]} 33. a4 {[%clk
0:00:07.3]} 33... g6 {[%clk 0:00:19.7]} 34. Nh4 {[%clk 0:00:05.9]} 34... Re3#
{[%clk 0:00:19]} 0-1

[Event "Late-Titled-Tuesday-Blitz-February-06-2024"]
[Site "Chess.com"]
[Date "2024.02.06"]
[Round "5"]
[White "Sokoloco"]
[Black "Attacker_2006"]
[Result "1-0"]
[WhiteElo "2774"]
[BlackElo "2489"]
[TimeControl "180+1"]
[EndTime "14:55:06 PST"]
[Termination "Sokoloco won on time"]

1. b3 {[%clk 0:03:00.9]} 1... e6 {[%clk 0:03:00.9]} 2. Bb2 {[%clk 0:03:00.4]}
2... Nf6 {[%clk 0:03:00]} 3. e3 {[%clk 0:03:00.2]} 3... d5 {[%clk 0:02:59.5]} 4.
Nf3 {[%clk 0:02:59.9]} 4... c5 {[%clk 0:02:59.2]} 5. d4 {[%clk 0:02:59.9]} 5...
Nc6 {[%clk 0:02:57.9]} 6. Nbd2 {[%clk 0:02:59]} 6... b6 {[%clk 0:02:50.8]} 7.
Bb5 {[%clk 0:02:44.8]} 7... Bb7 {[%clk 0:02:32.2]} 8. Ne5 {[%clk 0:02:45.4]}
8... Rc8 {[%clk 0:02:30.8]} 9. f4 {[%clk 0:02:45.4]} 9... Bd6 {[%clk 0:02:28.1]}
10. O-O {[%clk 0:02:43.8]} 10... O-O {[%clk 0:02:23.4]} 11. a3 {[%clk
0:02:43.1]} 11... a6 {[%clk 0:02:11.6]} 12. Nxc6 {[%clk 0:02:42.5]} 12... Bxc6
{[%clk 0:02:04.2]} 13. Bxa6 {[%clk 0:02:42.9]} 13... Ra8 {[%clk 0:02:03.7]} 14.
Bd3 {[%clk 0:02:43.6]} 14... Nd7 {[%clk 0:01:48.7]} 15. Rf3 {[%clk 0:02:22.6]}
15... cxd4 {[%clk 0:01:36]} 16. Rh3 {[%clk 0:02:01.3]} 16... f5 {[%clk
0:01:31.6]} 17. Bxd4 {[%clk 0:02:01.4]} 17... e5 {[%clk 0:01:18.5]} 18. fxe5
{[%clk 0:01:59.7]} 18... Bxe5 {[%clk 0:01:15.8]} 19. Nf3 {[%clk 0:01:16.9]}
19... Qf6 {[%clk 0:00:53.9]} 20. Nxe5 {[%clk 0:01:13.4]} 20... Nxe5 {[%clk
0:00:49.5]} 21. Qh5 {[%clk 0:01:14]} 21... h6 {[%clk 0:00:46.2]} 22. Rf1 {[%clk
0:01:14.5]} 22... Bd7 {[%clk 0:00:41.3]} 23. g4 {[%clk 0:00:35.7]} 23... Qd6
{[%clk 0:00:38.7]} 24. Bxe5 {[%clk 0:00:33.6]} 24... Qxe5 {[%clk 0:00:36.2]} 25.
gxf5 {[%clk 0:00:33.3]} 25... Rxa3 {[%clk 0:00:24.5]} 26. Rg3 {[%clk 0:00:33.5]}
26... Ra1 {[%clk 0:00:16.6]} 27. Rxa1 {[%clk 0:00:22.8]} 27... Qxa1+ {[%clk
0:00:17.5]} 28. Kg2 {[%clk 0:00:23.6]} 28... Rf6 {[%clk 0:00:14.5]} 29. Rg6
{[%clk 0:00:19.9]} 29... Be8 {[%clk 0:00:07.1]} 30. Rxg7+ {[%clk 0:00:17.6]}
30... Kxg7 {[%clk 0:00:06]} 31. Qxe8 {[%clk 0:00:18.5]} 31... Qe1 {[%clk
0:00:03.9]} 32. Qe7+ {[%clk 0:00:16.7]} 32... Rf7 {[%clk 0:00:03.5]} 33. f6+
{[%clk 0:00:15]} 33... Kg8 {[%clk 0:00:01.2]} 34. Qe8+ {[%clk 0:00:15.4]} 1-0

[Event "Late-Titled-Tuesday-Blitz-February-06-2024"]
[Site "Chess.com"]
[Date "2024.02.06"]
[Round "5"]
[White "UnTucopalaTimba"]
[Black "ChessFanNM"]
[Result "1-0"]
[WhiteElo "1971"]
[BlackElo "2320"]
[TimeControl "180+1"]
[EndTime "14:55:08 PST"]
[Termination "UnTucopalaTimba won by resignation"]

1. e4 {[%clk 0:02:59.3]} 1... e5 {[%clk 0:02:58.9]} 2. Nf3 {[%clk 0:02:59]} 2...
Nc6 {[%clk 0:02:58.5]} 3. Bb5 {[%clk 0:02:57.7]} 3... a6 {[%clk 0:02:58.2]} 4.
Ba4 {[%clk 0:02:57.2]} 4... b5 {[%clk 0:02:58.3]} 5. Bb3 {[%clk 0:02:56.3]} 5...
Na5 {[%clk 0:02:58.8]} 6. O-O {[%clk 0:02:50.6]} 6... Bb7 {[%clk 0:02:56.8]} 7.
Re1 {[%clk 0:02:46.1]} 7... Nf6 {[%clk 0:02:51.5]} 8. d3 {[%clk 0:02:41.9]} 8...
Be7 {[%clk 0:02:45.1]} 9. Nxe5 {[%clk 0:02:39.9]} 9... Nxb3 {[%clk 0:02:45]} 10.
axb3 {[%clk 0:02:37.9]} 10... d5 {[%clk 0:02:45.1]} 11. Nc3 {[%clk 0:02:27]}
11... dxe4 {[%clk 0:02:27.1]} 12. dxe4 {[%clk 0:02:15.9]} 12... b4 {[%clk
0:02:12.7]} 13. Nd5 {[%clk 0:02:03.4]} 13... Nxd5 {[%clk 0:02:10.2]} 14. exd5
{[%clk 0:02:03]} 14... Qxd5 {[%clk 0:02:08.1]} 15. Qg4 {[%clk 0:01:50.7]} 15...
O-O {[%clk 0:02:00]} 16. Bh6 {[%clk 0:01:45.1]} 16... Qxg2+ {[%clk 0:01:18]} 17.
Qxg2 {[%clk 0:01:43.4]} 17... Bxg2 {[%clk 0:01:18.5]} 18. Bxg7 {[%clk
0:01:39.5]} 18... Kxg7 {[%clk 0:01:14.7]} 19. Kxg2 {[%clk 0:01:38.5]} 19... Bf6
{[%clk 0:01:04.3]} 20. Nd3 {[%clk 0:01:26.8]} 20... a5 {[%clk 0:01:01]} 21. Re4
{[%clk 0:01:21.9]} 21... Rfe8 {[%clk 0:01:00.2]} 22. Rae1 {[%clk 0:01:20.5]}
22... Rxe4 {[%clk 0:00:54.2]} 23. Rxe4 {[%clk 0:01:19.5]} 23... Rd8 {[%clk
0:00:46]} 24. Rc4 {[%clk 0:01:12.4]} 24... Rd4 {[%clk 0:00:44.5]} 25. Rxc7
{[%clk 0:01:06.6]} 25... Rg4+ {[%clk 0:00:42.8]} 26. Kf3 {[%clk 0:01:02.3]}
26... Rh4 {[%clk 0:00:40.7]} 27. Kg3 {[%clk 0:01:01.1]} 27... Rd4 {[%clk
0:00:36.1]} 28. Rc5 {[%clk 0:00:52.5]} 28... h5 {[%clk 0:00:30.2]} 29. Rxh5
{[%clk 0:00:49.2]} 29... a4 {[%clk 0:00:30.1]} 30. bxa4 {[%clk 0:00:48]} 30...
Rc4 {[%clk 0:00:29.7]} 31. Rc5 {[%clk 0:00:41.8]} 31... Rxc5 {[%clk 0:00:18.1]}
32. Nxc5 {[%clk 0:00:41.7]} 32... Bxb2 {[%clk 0:00:19]} 33. a5 {[%clk
0:00:38.5]} 33... Bd4 {[%clk 0:00:18.3]} 34. Nd3 {[%clk 0:00:37.5]} 34... Kf6
{[%clk 0:00:17.5]} 35. a6 {[%clk 0:00:35.3]} 35... Ke6 {[%clk 0:00:14.3]} 36.
Nxb4 {[%clk 0:00:35.1]} 36... Kd6 {[%clk 0:00:13.7]} 37. h4 {[%clk 0:00:33.6]}
37... Kc7 {[%clk 0:00:09.8]} 38. h5 {[%clk 0:00:31.2]} 1-0

[Event "Late-Titled-Tuesday-Blitz-February-06-2024"]
[Site "Chess.com"]
[Date "2024.02.06"]
[Round "5"]
[White "frequentblunders"]
[Black "Supergiuly"]
[Result "0-1"]
[WhiteElo "2150"]
[BlackElo "2322"]
[TimeControl "180+1"]
[EndTime "14:55:08 PST"]
[Termination "Supergiuly won on time"]

1. d3 {[%clk 0:02:58.9]} 1... g6 {[%clk 0:02:53.6]} 2. f4 {[%clk 0:02:59.8]}
2... Bg7 {[%clk 0:02:54]} 3. Nf3 {[%clk 0:02:59.2]} 3... d5 {[%clk 0:02:54.6]}
4. Nc3 {[%clk 0:02:59]} 4... c6 {[%clk 0:02:55.2]} 5. g3 {[%clk 0:02:58.7]} 5...
Nd7 {[%clk 0:02:55.9]} 6. Bg2 {[%clk 0:02:59.2]} 6... e5 {[%clk 0:02:56.5]} 7.
O-O {[%clk 0:02:59.8]} 7... Ne7 {[%clk 0:02:55.8]} 8. e4 {[%clk 0:03:00]} 8...
dxe4 {[%clk 0:02:54.7]} 9. dxe4 {[%clk 0:02:58.8]} 9... exf4 {[%clk 0:02:54.9]}
10. Bxf4 {[%clk 0:02:57.8]} 10... O-O {[%clk 0:02:55.8]} 11. e5 {[%clk
0:02:48.2]} 11... Qb6+ {[%clk 0:02:54.1]} 12. Kh1 {[%clk 0:02:46]} 12... Qxb2
{[%clk 0:02:54]} 13. Qd2 {[%clk 0:02:40.7]} 13... Qa3 {[%clk 0:02:34.2]} 14. Ne4
{[%clk 0:02:34.6]} 14... Nd5 {[%clk 0:02:31.6]} 15. Nd6 {[%clk 0:02:13.9]} 15...
b6 {[%clk 0:02:04.2]} 16. c4 {[%clk 0:02:08.2]} 16... Nxf4 {[%clk 0:02:02.3]}
17. gxf4 {[%clk 0:02:09.1]} 17... Ba6 {[%clk 0:01:59.2]} 18. Ng5 {[%clk
0:01:57.3]} 18... f6 {[%clk 0:01:27.4]} 19. Ne6 {[%clk 0:01:52.2]} 19... fxe5
{[%clk 0:01:15.3]} 20. Nxf8 {[%clk 0:01:27.8]} 20... Rxf8 {[%clk 0:01:14.2]} 21.
Bxc6 {[%clk 0:01:23.9]} 21... exf4 {[%clk 0:00:49.6]} 22. Qd5+ {[%clk
0:00:45.1]} 22... Kh8 {[%clk 0:00:39.7]} 23. Rad1 {[%clk 0:00:16.1]} 23... Ne5
{[%clk 0:00:34.4]} 24. Rfe1 {[%clk 0:00:06.8]} 24... Qc5 {[%clk 0:00:15.3]} 25.
Rxe5 {[%clk 0:00:03.7]} 25... Qxc6 {[%clk 0:00:06.6]} 26. Nf7+ {[%clk
0:00:03.4]} 26... Rxf7 {[%clk 0:00:06.4]} 27. Qxc6 {[%clk 0:00:03.6]} 27... Bb7
{[%clk 0:00:05.4]} 28. Re8+ {[%clk 0:00:02.2]} 28... Bf8 {[%clk 0:00:05.7]} 0-1

[Event "Late-Titled-Tuesday-Blitz-February-06-2024"]
[Site "Chess.com"]
[Date "2024.02.06"]
[Round "5"]
[White "BozeKat"]
[Black "Hui_Li_Macau"]
[Result "0-1"]
[WhiteElo "2005"]
[BlackElo "2362"]
[TimeControl "180+1"]
[EndTime "14:55:12 PST"]
[Termination "Hui_Li_Macau won on time"]

1. d4 {[%clk 0:03:00.9]} 1... d5 {[%clk 0:03:00]} 2. c4 {[%clk 0:03:00.9]} 2...
e6 {[%clk 0:03:00]} 3. Nc3 {[%clk 0:03:00.2]} 3... Nf6 {[%clk 0:02:58.1]} 4. Nf3
{[%clk 0:02:59.1]} 4... Be7 {[%clk 0:02:58]} 5. g4 {[%clk 0:02:58.5]} 5... c5
{[%clk 0:02:41]} 6. dxc5 {[%clk 0:02:55.7]} 6... Bxc5 {[%clk 0:02:30.6]} 7. g5
{[%clk 0:02:40.7]} 7... Ne4 {[%clk 0:02:24.5]} 8. Nxe4 {[%clk 0:02:39.8]} 8...
dxe4 {[%clk 0:02:24.7]} 9. Qxd8+ {[%clk 0:02:39.8]} 9... Kxd8 {[%clk 0:02:25.6]}
10. Ne5 {[%clk 0:02:38.1]} 10... Ke7 {[%clk 0:02:21.7]} 11. a3 {[%clk
0:02:32.6]} 11... Nd7 {[%clk 0:02:15.7]} 12. Nxd7 {[%clk 0:02:20.5]} 12... Bxd7
{[%clk 0:02:15.7]} 13. e3 {[%clk 0:02:18.8]} 13... a5 {[%clk 0:02:12.8]} 14. Bg2
{[%clk 0:02:12.2]} 14... Bc6 {[%clk 0:02:12.6]} 15. Bd2 {[%clk 0:02:10.8]} 15...
b6 {[%clk 0:02:09.8]} 16. Bc3 {[%clk 0:02:10.2]} 16... f6 {[%clk 0:02:08.7]} 17.
h4 {[%clk 0:02:08.5]} 17... e5 {[%clk 0:01:59.2]} 18. Ke2 {[%clk 0:02:06.8]}
18... h6 {[%clk 0:01:38.7]} 19. b4 {[%clk 0:01:56.9]} 19... axb4 {[%clk
0:01:36.6]} 20. axb4 {[%clk 0:01:57.8]} 20... Bd6 {[%clk 0:01:35]} 21. gxh6
{[%clk 0:01:27.9]} 21... gxh6 {[%clk 0:01:18.5]} 22. Bh3 {[%clk 0:01:26.8]}
22... Bd7 {[%clk 0:01:11.7]} 23. Bxd7 {[%clk 0:01:03.5]} 23... Kxd7 {[%clk
0:01:12.6]} 24. Rhd1 {[%clk 0:00:58.5]} 24... Ke6 {[%clk 0:01:12.2]} 25. Kd2
{[%clk 0:00:14.5]} 25... h5 {[%clk 0:01:10.4]} 26. Kc2 {[%clk 0:00:13.8]} 26...
Rhg8 {[%clk 0:01:05.3]} 27. Kb3 {[%clk 0:00:11.4]} 27... Be7 {[%clk 0:01:05.1]}
28. Rxa8 {[%clk 0:00:09.6]} 28... Rxa8 {[%clk 0:01:04.8]} 29. Rg1 {[%clk
0:00:08.5]} 29... Kf7 {[%clk 0:01:01.1]} 30. Rg2 {[%clk 0:00:04.9]} 30... Rg8
{[%clk 0:00:47.3]} 31. Rxg8 {[%clk 0:00:03.1]} 31... Kxg8 {[%clk 0:00:48.2]} 32.
b5 {[%clk 0:00:01.3]} 32... Kf7 {[%clk 0:00:43.6]} 33. Bb4 {[%clk 0:00:01.5]}
33... Bd8 {[%clk 0:00:43.5]} 34. c5 {[%clk 0:00:01.6]} 34... bxc5 {[%clk
0:00:43.8]} 35. Bxc5 {[%clk 0:00:02.5]} 35... Ke6 {[%clk 0:00:42.8]} 36. Kc4
{[%clk 0:00:03.4]} 36... f5 {[%clk 0:00:42.1]} 37. b6 {[%clk 0:00:03.3]} 37...
f4 {[%clk 0:00:29]} 38. Kb5 {[%clk 0:00:01.7]} 38... Kd7 {[%clk 0:00:26.2]} 0-1

[Event "Late-Titled-Tuesday-Blitz-February-06-2024"]
[Site "Chess.com"]
[Date "2024.02.06"]
[Round "5"]
[White "ccccvhhhj"]
[Black "OglazaOskar2005"]
[Result "1-0"]
[WhiteElo "2466"]
[BlackElo "2607"]
[TimeControl "180+1"]
[EndTime "14:55:13 PST"]
[Termination "ccccvhhhj won by checkmate"]

1. d4 {[%clk 0:02:55.9]} 1... Nf6 {[%clk 0:02:59.4]} 2. Bg5 {[%clk 0:02:55.5]}
2... d5 {[%clk 0:02:57.2]} 3. Nc3 {[%clk 0:02:50.2]} 3... c5 {[%clk 0:02:52.5]}
4. e3 {[%clk 0:02:49.4]} 4... Nc6 {[%clk 0:02:51.9]} 5. Qd2 {[%clk 0:02:46.4]}
5... e6 {[%clk 0:02:47.9]} 6. O-O-O {[%clk 0:02:45.9]} 6... Be7 {[%clk
0:02:38.4]} 7. h4 {[%clk 0:02:43.6]} 7... O-O {[%clk 0:02:37.4]} 8. h5 {[%clk
0:02:33.8]} 8... h6 {[%clk 0:02:36.3]} 9. Bf4 {[%clk 0:02:33.7]} 9... a6 {[%clk
0:02:20.3]} 10. f3 {[%clk 0:02:33.6]} 10... b5 {[%clk 0:02:15.1]} 11. g4 {[%clk
0:02:33.7]} 11... b4 {[%clk 0:02:12.1]} 12. Nce2 {[%clk 0:02:33.9]} 12... Qa5
{[%clk 0:02:10.5]} 13. Kb1 {[%clk 0:02:33.7]} 13... Nd7 {[%clk 0:01:55.1]} 14.
dxc5 {[%clk 0:02:18.3]} 14... Nxc5 {[%clk 0:01:54.1]} 15. Nh3 {[%clk 0:02:17.4]}
15... Na4 {[%clk 0:01:50.4]} 16. Nc1 {[%clk 0:02:17.3]} 16... Nc3+ {[%clk
0:01:13.9]} 17. Ka1 {[%clk 0:01:50.7]} 17... Nxd1 {[%clk 0:00:55.4]} 18. Qxd1
{[%clk 0:01:50.8]} 18... f6 {[%clk 0:00:55.1]} 19. Bd3 {[%clk 0:01:41.2]} 19...
e5 {[%clk 0:00:54.3]} 20. Bg3 {[%clk 0:01:30.9]} 20... Be6 {[%clk 0:00:54.4]}
21. Bf5 {[%clk 0:01:10.9]} 21... Bxf5 {[%clk 0:00:51]} 22. gxf5 {[%clk
0:01:11.2]} 22... d4 {[%clk 0:00:49.9]} 23. e4 {[%clk 0:00:51.8]} 23... b3
{[%clk 0:00:36.3]} 24. Nxb3 {[%clk 0:00:49.2]} 24... Qa4 {[%clk 0:00:36]} 25.
Kb1 {[%clk 0:00:37.6]} 25... Nb4 {[%clk 0:00:32.6]} 26. a3 {[%clk 0:00:36.9]}
26... Nc6 {[%clk 0:00:31]} 27. Rg1 {[%clk 0:00:35.2]} 27... Bd6 {[%clk
0:00:30.7]} 28. Nf2 {[%clk 0:00:35.2]} 28... Rf7 {[%clk 0:00:30.1]} 29. Nd3
{[%clk 0:00:33.2]} 29... Rb8 {[%clk 0:00:29.3]} 30. Qd2 {[%clk 0:00:33.4]} 30...
Kf8 {[%clk 0:00:26.6]} 31. f4 {[%clk 0:00:29.2]} 31... Rfb7 {[%clk 0:00:24.6]}
32. fxe5 {[%clk 0:00:28.8]} 32... Nxe5 {[%clk 0:00:24.2]} 33. Bxe5 {[%clk
0:00:26.5]} 33... fxe5 {[%clk 0:00:18.6]} 34. f6 {[%clk 0:00:27.4]} 34... Qc6
{[%clk 0:00:11]} 35. fxg7+ {[%clk 0:00:26.3]} 35... Rxg7 {[%clk 0:00:11.7]} 36.
Qxh6 {[%clk 0:00:26.2]} 36... Rb7 {[%clk 0:00:08]} 37. Rf1+ {[%clk 0:00:23.8]}
37... Kg8 {[%clk 0:00:08.2]} 38. Qe6+ {[%clk 0:00:23.4]} 38... Kh8 {[%clk
0:00:08.1]} 39. h6 {[%clk 0:00:23.8]} 39... Rge7 {[%clk 0:00:06.5]} 40. Rf8+
{[%clk 0:00:23.7]} 40... Kh7 {[%clk 0:00:06.8]} 41. Qf5+ {[%clk 0:00:23.4]}
41... Kxh6 {[%clk 0:00:06.8]} 42. Rf6+ {[%clk 0:00:22.4]} 42... Kg7 {[%clk
0:00:07.2]} 43. Qg6+ {[%clk 0:00:21.1]} 43... Kh8 {[%clk 0:00:07.7]} 44. Rf8#
{[%clk 0:00:21.5]} 1-0